{"text_format":"1","workbook":"xlsx","n_sheets":3,"sheets":["Feuil1","Feuil2","Feuil3"],"not_rendered":{"charts":0,"images":0,"macros":0,"external_links":0,"defined_names":0,"comments":0,"pivot_tables":0},"unopened":[],"bounds":{"document_bytes":16777216,"sheet_cells":100000,"rows_first":2000,"rows_last":500,"rows_between":2000,"halvings":0,"cell_chars":16384,"cell_head_chars":4096},"cells_cut":0,"cells_raw":0,"read":"whole","date_system":"1900"}

{"sheet":"Feuil1","index":0,"n_rows":17,"n_cols":5,"rows_kept":17,"cut":false,"hidden":false,"merged":[]}
[null,"Détection",null,null,"extraction:"]
["CFERTE@gmail.fr",{"$f":"IF(COUNTIF(A2,\"*@gmail*\"),MAX($B$1:B1)+1,\"\")","v":1},null,null,{"$f":"IF(MAX(B:B)>=ROW()-1,INDEX(A:A,MATCH(ROW()-1,B:B,0)),\"\")","v":"CFERTE@gmail.fr"}]
["CREFTRE@gmail.com",{"$f":"IF(COUNTIF(A3,\"*@gmail*\"),MAX($B$1:B2)+1,\"\")","v":2},null,null,{"$f":"IF(MAX(B:B)>=ROW()-1,INDEX(A:A,MATCH(ROW()-1,B:B,0)),\"\")","v":"CREFTRE@gmail.com"}]
["FERT@orange.fr",{"$f":"IF(COUNTIF(A4,\"*@gmail*\"),MAX($B$1:B3)+1,\"\")","v":""},null,null,"XXXFERTE@gmail.fr"]
["XSXDSRE@free.com",{"$f":"IF(COUNTIF(A5,\"*@gmail*\"),MAX($B$1:B4)+1,\"\")","v":""},null,null,"XXXREFTRE@gmail.XXXom"]
["XXXFERTE@gmail.fr",{"$f":"IF(COUNTIF(A6,\"*@gmail*\"),MAX($B$1:B5)+1,\"\")","v":3},null,null,"CFZKPRTZKP@gmail.fr"]
["XXXREFTRE@gmail.XXXom",{"$f":"IF(COUNTIF(A7,\"*@gmail*\"),MAX($B$1:B6)+1,\"\")","v":4},null,null,"CRZKPFTRZKP@gmail.com"]
["FERT@orange.fr",{"$f":"IF(COUNTIF(A8,\"*@gmail*\"),MAX($B$1:B7)+1,\"\")","v":""},null,null,"CURGERTE@gmail.URGr"]
["XSXDSRE@free.XXXom",{"$f":"IF(COUNTIF(A9,\"*@gmail*\"),MAX($B$1:B8)+1,\"\")","v":""},null,null,"CREURGTRE@gmail.com"]
["CFZKPRTZKP@gmail.fr",{"$f":"IF(COUNTIF(A10,\"*@gmail*\"),MAX($B$1:B9)+1,\"\")","v":5},null,null,""]
["CRZKPFTRZKP@gmail.com",{"$f":"IF(COUNTIF(A11,\"*@gmail*\"),MAX($B$1:B10)+1,\"\")","v":6},null,null,""]
["FZKPRT@orangZKP.fr",{"$f":"IF(COUNTIF(A12,\"*@gmail*\"),MAX($B$1:B11)+1,\"\")","v":""},null,null,""]
["XSXDSRZKP@frZKPZKP.com",{"$f":"IF(COUNTIF(A13,\"*@gmail*\"),MAX($B$1:B12)+1,\"\")","v":""},null,null,""]
["CURGERTE@gmail.URGr",{"$f":"IF(COUNTIF(A14,\"*@gmail*\"),MAX($B$1:B13)+1,\"\")","v":7},null,null,""]
["CREURGTRE@gmail.com",{"$f":"IF(COUNTIF(A15,\"*@gmail*\"),MAX($B$1:B14)+1,\"\")","v":8},null,null,""]
["URGERT@orange.URGr",{"$f":"IF(COUNTIF(A16,\"*@gmail*\"),MAX($B$1:B15)+1,\"\")","v":""},null,null,""]
["XSXDSRE@URGree.com",{"$f":"IF(COUNTIF(A17,\"*@gmail*\"),MAX($B$1:B16)+1,\"\")","v":""},null,null,""]

{"sheet":"Feuil2","index":1,"n_rows":0,"n_cols":0,"rows_kept":0,"cut":false,"hidden":false,"merged":[]}

{"sheet":"Feuil3","index":2,"n_rows":0,"n_cols":0,"rows_kept":0,"cut":false,"hidden":false,"merged":[]}